bitfinex/quotes_BTCUSD_20230905
["timestamp","ask_amount","ask_price","bid_price","bid_amount"]
[1693946537997,0.23339872,25702.0,25701.0,1.31302394]
[1693946538174,0.23339872,25702.0,25701.0,1.21052394]
[1693946538836,0.02560304,25702.0,25701.0,1.21052394]
[1693946539048,0.02560304,25702.0,25701.0,1.49684273]
[1693946539233,0.02560304,25702.0,25701.0,2.08047673]
[1693946540274,0.02560304,25702.0,25701.0,2.18297673]
[1693946543997,0.20540169,25702.0,25701.0,0.04325594]
[1693946545936,0.98355069,25702.0,25701.0,0.04325594]
[1693946546827,1.76169969,25702.0,25701.0,0.04325594]
[1693946547229,0.98355069,25702.0,25701.0,0.04325594]
[1693946549780,0.20540169,25702.0,25701.0,0.04325594]
[1693946553434,0.20540169,25702.0,25701.0,1.21052394]
[1693946553568,0.04560304,25702.0,25701.0,1.21052394]
[1693946554697,0.04560304,25702.0,25701.0,1.86285794]
[1693946554941,0.04560304,25702.0,25701.0,1.89665794]
[1693946556648,0.02560304,25702.0,25701.0,1.89665794]
[1693946556855,0.04560304,25702.0,25701.0,1.89665794]
[1693946558042,0.04560304,25702.0,25701.0,1.31302394]
[1693946559344,0.04560304,25702.0,25701.0,1.51080193]
[1693946563382,0.13895618,25702.0,25701.0,1.40830193]
[1693946563560,0.13895618,25702.0,25701.0,2.10830193]
[1693946564133,0.04560304,25702.0,25701.0,2.10830193]
[1693946564525,0.27898589,25702.0,25701.0,2.10830193]
[1693946565701,0.18563275,25702.0,25701.0,2.10830193]
[1693946570639,0.27895767,25702.0,25701.0,2.75799593]
[1693946570842,0.27895767,25702.0,25701.0,2.76285593]
[1693946571051,0.27895767,25702.0,25701.0,2.76291593]
[1693946571274,0.27895767,25702.0,25701.0,2.76207593]
[1693946571449,0.27895767,25702.0,25701.0,2.76219593]
[1693946571655,0.27895767,25702.0,25701.0,2.76213593]
[1693946571880,0.25895767,25702.0,25701.0,2.76249593]
[1693946572082,0.27895767,25702.0,25701.0,3.1456612]
[1693946572448,0.27895767,25702.0,25701.0,3.1535212]
[1693946572567,0.27895767,25702.0,25701.0,3.1534012]
[1693946572769,0.27895767,25702.0,25701.0,3.1481812]
[1693946572966,0.27895767,25702.0,25701.0,3.0785812]
[1693946573167,0.27895767,25702.0,25701.0,3.1810812]
[1693946573582,0.27895767,25702.0,25701.0,2.5974472]
[1693946575317,0.27895767,25702.0,25701.0,2.21080193]
[1693946575520,0.18563275,25702.0,25701.0,2.01302394]
[1693946576145,0.27897486,25702.0,25701.0,2.01302394]
[1693946578095,0.35014326,25702.0,25701.0,0.84575594]
[1693946578304,0.35014326,25702.0,25701.0,0.74325594]
[1693946578305,0.39681983,25702.0,25701.0,0.74325594]
[1693946578489,1.31498785,25702.0,25701.0,0.74325594]
[1693946578796,1.17496883,25702.0,25701.0,0.74325594]
[1693946579211,1.31498174,25702.0,25701.0,0.74325594]
[1693946581296,0.53683274,25702.0,25701.0,0.74325594]
[1693946581730,0.53683274,25702.0,25701.0,0.04325594]
[1693946583563,0.39681983,25702.0,25701.0,0.04325594]
[1693946584373,0.53684579,25702.0,25701.0,0.04325594]
[1693946590728,1.49283643,25702.0,25701.0,0.04325594]
[1693946591339,1.32832592,25702.0,25701.0,0.04325594]
[1693946591692,3.03430762,25702.0,25701.0,0.04325594]
[1693946592500,3.03230762,25702.0,25701.0,0.02025594]
[1693946592900,3.03230762,25702.0,25701.0,0.01425594]
[1693946592901,3.03130762,25702.0,25701.0,0.01425594]
[1693946593374,3.03030762,25702.0,25701.0,0.00025594]
[1693946593808,3.27100762,25702.0,25701.0,0.00225594]
[1693946593971,3.27100762,25702.0,25701.0,0.002]
[1693946594153,3.29500762,25702.0,25701.0,0.004]
[1693946594709,3.46195289,25702.0,25701.0,0.004]
[1693946594890,3.46195289,25702.0,25701.0,0.00423334]
[1693946595990,3.22857003,25702.0,25701.0,0.00423334]
[1693946596372,3.46184955,25702.0,25701.0,0.00423334]
[1693946596768,3.22857003,25702.0,25701.0,0.00423334]
[1693946596973,3.22857003,25702.0,25701.0,0.004]
[1693946597171,3.46183174,25702.0,25701.0,0.004]
[1693946597383,3.22857003,25702.0,25701.0,0.004]
[1693946597594,3.46183004,25702.0,25701.0,0.004]
[1693946597810,3.22857003,25702.0,25701.0,0.004]
[1693946598171,3.4618152,25702.0,25701.0,0.004]
[1693946600645,3.22857003,25702.0,25701.0,0.004]
[1693946600990,3.36857003,25702.0,25701.0,0.004]
[1693946603577,3.7552153,25702.0,25701.0,0.004]
[1693946604857,3.7352153,25702.0,25701.0,0.004]
[1693946608456,3.7352153,25702.0,25694.0,0.739091]
[1693946608457,3.6902153,25702.0,25694.0,0.739091]
[1693946608636,0.02,25696.0,25694.0,0.739091]
[1693946608838,0.02,25696.0,25694.0,0.583791]
[1693946609010,0.02,25696.0,25695.0,0.00026199]
[1693946610348,0.023,25696.0,25695.0,0.00026199]
[1693946610704,0.02,25696.0,25695.0,0.00026199]
[1693946610911,0.022,25696.0,25695.0,0.00126199]
[1693946612277,0.024,25696.0,25695.0,0.01926199]
[1693946612597,0.024,25696.0,25695.0,0.71926199]
[1693946617411,0.024,25696.0,25695.0,0.01926199]
[1693946618533,0.024,25696.0,25695.0,0.60303299]
[1693946621185,0.024,25696.0,25695.0,1.30303299]
[1693946623366,0.04788575,25696.0,25695.0,1.30303299]
[1693946625599,0.04788575,25696.0,25695.0,1.88680399]
[1693946625803,0.04788575,25696.0,25695.0,1.87680399]
[1693946626013,0.04788575,25696.0,25695.0,1.87706882]
[1693946626230,0.02788575,25696.0,25695.0,1.87706882]
[1693946626428,0.04788575,25696.0,25695.0,1.87706882]
[1693946632753,0.22862586,25696.0,25695.0,1.87706882]
[1693946633175,0.22862586,25696.0,25695.0,0.59329782]
[1693946634569,0.22862586,25696.0,25695.0,0.58329782]
[1693946635015,0.20862586,25696.0,25695.0,0.58329782]
[1693946635207,0.20862586,25696.0,25695.0,0.00026483]
[1693946635208,0.22862586,25696.0,25695.0,0.00026483]
[1693946635403,1.00695686,25696.0,25695.0,0.00026483]
[1693946635746,1.78528786,25696.0,25695.0,0.00026483]
[1693946636066,1.78528786,25696.0,25693.0,1.167612]
[1693946636882,0.16287406,25695.0,25694.0,0.0002652]
[1693946637950,0.16587406,25695.0,25694.0,0.0022652]
[1693946638150,0.16887406,25695.0,25694.0,0.0032652]
[1693946638496,0.18711881,25695.0,25694.0,0.0032652]
[1693946644767,1.86634081,25695.0,25694.0,0.0032652]
[1693946646938,2.16948489,25695.0,25694.0,0.0032652]
[1693946647786,1.86634081,25695.0,25694.0,0.0032652]
[1693946669597,1.86634081,25695.0,25694.0,2.41844758]
[1693946669598,0.02424475,25695.0,25694.0,2.41844758]
[1693946669810,0.02424475,25695.0,25694.0,4.00224058]
[1693946669811,0.006,25695.0,25694.0,4.00224058]
[1693946670014,0.006,25695.0,25694.0,4.2906575]
[1693946670221,0.006,25695.0,25694.0,4.2692975]
[1693946670429,0.003,25695.0,25694.0,4.2660975]
[1693946670631,0.003,25695.0,25694.0,4.2671775]
[1693946671014,0.00099946,25700.0,25694.0,4.7306375]
[1693946671015,0.02099946,25700.0,25694.0,4.7306375]
[1693946671214,0.02,25699.0,25697.0,0.1025]
[1693946671350,0.02,25699.0,25698.0,2.13775427]
[1693946671552,0.02,25699.0,25698.0,2.23333427]
[1693946671737,0.02,25699.0,25698.0,2.23369427]
[1693946671936,0.02,25699.0,25698.0,2.23257798]
[1693946672141,0.02,25699.0,25698.0,2.23161798]
[1693946672339,0.021,25699.0,25698.0,2.93173798]
[1693946672542,0.02,25699.0,25698.0,2.93149798]
[1693946672749,0.02,25699.0,25698.0,2.93125798]
[1693946672969,0.02,25699.0,25698.0,2.93395798]
[1693946673172,0.02,25699.0,25698.0,2.93347798]
[1693946673378,0.02,25699.0,25698.0,2.93323798]
[1693946673568,0.02,25699.0,25698.0,2.93575798]
[1693946673772,0.02,25699.0,25698.0,2.93545798]
[1693946673977,0.02,25699.0,25698.0,2.93221798]
[1693946674177,0.02,25699.0,25698.0,2.92219798]
[1693946674406,0.02,25699.0,25698.0,2.14401798]
[1693946674803,0.02,25699.0,25698.0,2.14285696]
[1693946675457,0.02,25699.0,25698.0,2.20843696]
[1693946675657,0.02,25699.0,25698.0,2.20831696]
[1693946675866,0.02,25699.0,25698.0,2.21389696]
[1693946676079,0.02,25699.0,25698.0,2.91749696]
[1693946676295,0.02,25699.0,25698.0,2.91731696]
[1693946676488,0.02,25699.0,25698.0,2.91227696]
[1693946676721,0.02,25699.0,25698.0,2.84285696]
[1693946677131,0.02,25699.0,25698.0,2.90879696]
[1693946677245,0.02,25699.0,25698.0,2.90867696]
[1693946677445,0.02,25699.0,25698.0,2.90855696]
[1693946677651,0.02,25699.0,25698.0,2.90843696]
[1693946677854,0.02,25699.0,25698.0,2.90831696]
[1693946678059,0.02,25699.0,25698.0,2.84285696]
[1693946678468,0.02,25699.0,25698.0,2.91005696]
[1693946678668,0.02,25699.0,25698.0,2.90987696]
[1693946678878,0.02,25699.0,25698.0,2.91041696]
[1693946679109,0.02,25699.0,25698.0,2.91035696]
[1693946679282,0.02,25699.0,25698.0,2.91017696]
[1693946679487,0.02,25699.0,25698.0,2.91053696]
[1693946679690,0.02,25699.0,25698.0,2.91017696]
[1693946679933,0.02,25699.0,25698.0,2.91047696]
[1693946680137,0.02,25699.0,25698.0,2.33037396]
[1693946680354,0.02,25699.0,25698.0,2.33007396]
[1693946680560,0.02,25699.0,25698.0,2.32989396]
[1693946680766,0.02,25699.0,25698.0,2.32965396]
[1693946681066,0.02,25699.0,25698.0,2.32929396]
[1693946681227,0.02,25699.0,25698.0,2.32887396]
[1693946681427,0.02,25699.0,25698.0,2.32929396]
[1693946681623,0.02,25699.0,25698.0,2.32881396]
[1693946681829,0.02,25699.0,25698.0,2.32815396]
[1693946682103,0.02,25699.0,25698.0,2.32833396]
[1693946682217,0.02,25699.0,25698.0,2.32803396]
[1693946682430,0.02,25699.0,25698.0,2.32845396]
[1693946682634,0.02,25699.0,25698.0,2.32827396]
[1693946682839,0.02,25699.0,25698.0,2.32815396]
[1693946683142,0.02,25699.0,25698.0,2.32617396]
[1693946683496,0.02,25699.0,25698.0,2.32671396]
[1693946683706,0.02,25699.0,25698.0,2.32665396]
[1693946683911,0.02,25699.0,25698.0,2.32635396]
[1693946684109,0.02,25699.0,25698.0,2.32629396]
[1693946684354,0.02,25699.0,25698.0,2.32593396]
[1693946684550,0.02,25699.0,25698.0,2.32521396]
[1693946684686,0.02,25699.0,25698.0,2.25915396]
[1693946685088,0.02,25699.0,25698.0,1.55915396]
[1693946693885,0.02,25699.0,25698.0,1.62857396]
[1693946694090,0.02,25699.0,25698.0,1.80620296]
[1693946699305,0.02,25699.0,25698.0,0.83701571]
[1693946699537,0.96559516,25699.0,25698.0,0.70626371]
[1693946700998,0.96559516,25699.0,25698.0,0.00626371]
[1693946705210,0.02,25699.0,25698.0,0.00626371]
[1693946705618,0.02,25699.0,25698.0,0.70626371]
[1693946707446,0.02,25699.0,25698.0,2.84401798]
[1693946707627,0.02,25699.0,25698.0,2.92573798]
[1693946707853,0.02,25699.0,25698.0,2.92663798]
[1693946708032,0.02,25699.0,25698.0,2.26031498]
[1693946714361,0.02,25699.0,25698.0,1.67661198]
[1693946715762,0.1132276,25699.0,25698.0,1.67661198]
[1693946718188,0.2954817,25699.0,25698.0,0.70626371]
[1693946718389,2.7327017,25699.0,25698.0,0.00626371]
[1693946719388,2.8725431,25699.0,25698.0,0.00626371]
[1693946719712,2.7327017,25699.0,25698.0,0.00626371]
[1693946722152,2.5504476,25699.0,25698.0,0.00626371]
[1693946722354,2.7835166,25699.0,25698.0,0.00626371]
[1693946722551,3.17016187,25699.0,25698.0,0.00626371]
[1693946722735,2.98370667,25699.0,25698.0,0.00626371]
[1693946722931,2.98370667,25699.0,25698.0,0.006]
[1693946723167,3.17016187,25699.0,25698.0,0.006]
[1693946723811,2.98370667,25699.0,25698.0,0.006]
[1693946724013,3.1503924,25699.0,25698.0,0.006]
[1693946725028,2.5970614,25699.0,25698.0,0.00626371]
[1693946725774,2.75935795,25699.0,25698.0,0.00626371]
[1693946726000,2.75935795,25699.0,25698.0,0.00326371]
[1693946726416,2.76535795,25699.0,25698.0,0.00426371]
[1693946726848,2.75935795,25699.0,25698.0,0.00326371]
[1693946727260,2.75935795,25699.0,25698.0,0.00226371]
[1693946727261,3.17000322,25699.0,25698.0,0.00226371]
[1693946727469,3.0078534,25699.0,25698.0,0.00226371]
[1693946727652,3.0148534,25699.0,25698.0,0.00326371]
[1693946728075,2.62120813,25699.0,25698.0,0.00226371]
[1693946728328,2.64520813,25699.0,25698.0,0.00426371]
[1693946728820,2.73853241,25699.0,25698.0,0.00426371]
[1693946729074,2.94447999,25699.0,25698.0,0.00426371]
[1693946730504,2.73853241,25699.0,25698.0,0.00426371]
[1693946731225,2.73853241,25699.0,25698.0,0.004]
[1693946731927,3.11989804,25699.0,25698.0,0.004]
[1693946732342,3.38064531,25699.0,25698.0,0.004]
[1693946732720,3.07323647,25699.0,25698.0,0.004]
[1693946732903,3.38059358,25699.0,25698.0,0.004]
[1693946733308,3.07323647,25699.0,25698.0,0.004]
[1693946733889,3.21318196,25699.0,25698.0,0.004]
[1693946734302,3.38152706,25699.0,25698.0,0.004]
[1693946734708,3.74150195,25699.0,25698.0,0.004]
[1693946734916,4.04150195,25699.0,25698.0,0.004]
[1693946735846,4.27466338,25699.0,25698.0,0.004]
[1693946740539,4.4610841,25699.0,25698.0,0.004]
[1693946744806,4.22792267,25699.0,25698.0,0.004]
[1693946747541,4.20392267,25699.0,25698.0,0.002]
[1693946747744,4.22792267,25699.0,25698.0,0.002]
[1693946748363,0.02,25697.0,25691.0,0.8986]
[1693946748614,0.1025,25693.0,25691.0,1.179194]
[1693946748821,0.02,25692.0,25691.0,0.7]
[1693946749246,0.02,25692.0,25691.0,1.283862]
[1693946749460,0.02,25692.0,25691.0,1.287862]
[1693946749876,0.02,25692.0,25691.0,1.283862]
[1693946750307,0.023,25692.0,25691.0,1.290862]
[1693946750706,0.023,25692.0,25691.0,1.287862]
[1693946750906,0.026,25692.0,25691.0,1.290862]
[1693946752779,0.026,25692.0,25691.0,1.54758006]
[1693946752979,0.026,25692.0,25691.0,3.17742933]
[1693946753183,0.006,25692.0,25691.0,3.27992933]
[1693946753463,0.006,25692.0,25691.0,3.47360933]
[1693946753647,0.006,25692.0,25691.0,3.49364933]
[1693946753849,0.006,25692.0,25691.0,3.51232933]
[1693946754070,0.006,25692.0,25691.0,3.51424933]
[1693946754279,0.006,25692.0,25691.0,3.51892933]
[1693946754492,0.006,25692.0,25691.0,3.94242933]
[1693946754722,0.006,25692.0,25691.0,3.94254933]
[1693946754908,0.006,25692.0,25691.0,3.94794933]
[1693946755106,0.006,25692.0,25691.0,3.94734933]
[1693946755321,0.003,25692.0,25691.0,3.92942933]
[1693946755523,0.003,25692.0,25691.0,3.92426933]
[1693946755730,0.005,25692.0,25691.0,3.93722933]
[1693946755935,0.005,25692.0,25691.0,3.93494933]
[1693946756150,0.003,25692.0,25691.0,3.91046933]
[1693946756347,0.005,25692.0,25691.0,3.93410933]
[1693946756575,0.005,25692.0,25691.0,3.93362933]
[1693946756776,0.005,25692.0,25691.0,3.92894933]
[1693946756777,0.002,25692.0,25691.0,3.92894933]
[1693946756969,0.002,25692.0,25691.0,3.92678933]
[1693946757155,0.002,25692.0,25691.0,3.96002933]
[1693946757362,0.004,25692.0,25691.0,4.07597085]
[1693946757507,0.004,25692.0,25691.0,4.05221085]
[1693946757729,0.006,25692.0,25691.0,4.07765085]
[1693946757938,0.006,25692.0,25691.0,4.10489085]
[1693946758142,0.006,25692.0,25691.0,4.40892313]
[1693946758348,0.006,25692.0,25691.0,4.71396313]
[1693946758549,0.006,25692.0,25691.0,4.86755494]
[1693946758764,0.006,25692.0,25691.0,4.77081342]
[1693946758969,0.006,25692.0,25691.0,4.76373342]
[1693946759170,0.006,25692.0,25691.0,4.73757342]
[1693946759347,0.006,25692.0,25691.0,4.72737342]
[1693946759546,0.006,25692.0,25691.0,5.83953757]
[1693946759787,0.006,25692.0,25691.0,5.83713757]
[1693946759987,0.006,25692.0,25691.0,5.83749757]
[1693946760192,0.006,25692.0,25691.0,5.83761757]
[1693946760393,0.006,25692.0,25691.0,5.83725757]
[1693946760680,0.006,25692.0,25691.0,5.83833757]
[1693946761068,0.006,25692.0,25691.0,5.84109757]
[1693946761277,0.006,25692.0,25691.0,5.84673757]
[1693946761472,0.006,25692.0,25691.0,5.84781757]
[1693946761701,0.006,25692.0,25691.0,5.84769757]
[1693946761904,0.006,25692.0,25691.0,5.86041757]
[1693946762112,0.006,25692.0,25691.0,5.87493757]
[1693946762313,0.006,25692.0,25691.0,5.87637757]
[1693946762558,0.006,25692.0,25691.0,6.06338062]
[1693946762808,0.006,25692.0,25691.0,5.92258834]
[1693946762936,0.006,25692.0,25691.0,5.92210834]
[1693946763116,0.006,25692.0,25691.0,5.92294834]
[1693946763317,0.006,25692.0,25691.0,5.92270834]
[1693946763621,0.006,25692.0,25691.0,5.97981282]
[1693946763797,0.006,25692.0,25691.0,5.97873282]
[1693946764114,0.006,25692.0,25691.0,5.97801282]
[1693946764327,0.006,25692.0,25691.0,5.97921282]
[1693946764547,0.006,25692.0,25691.0,5.97441282]
[1693946764732,0.006,25692.0,25691.0,5.97309282]
[1693946764932,0.006,25692.0,25691.0,5.97477282]
[1693946765104,0.006,25692.0,25691.0,5.97525282]
[1693946765314,0.006,25692.0,25691.0,5.97501282]
[1693946765516,0.006,25692.0,25691.0,5.97513282]
[1693946765697,0.006,25692.0,25691.0,6.11540153]
[1693946765895,0.006,25692.0,25691.0,6.11516153]
[1693946766220,0.006,25692.0,25691.0,6.11492153]
[1693946766418,0.006,25692.0,25691.0,6.11336153]
[1693946766627,0.006,25692.0,25691.0,5.96709282]
[1693946766782,0.006,25692.0,25691.0,5.96781282]
[1693946766981,0.006,25692.0,25691.0,5.96649282]
[1693946767182,0.006,25692.0,25691.0,5.96685282]
[1693946767457,0.006,25692.0,25691.0,5.96649282]
[1693946767688,0.006,25692.0,25691.0,5.96157282]
[1693946767889,0.006,25692.0,25691.0,5.96049282]
[1693946768095,0.006,25692.0,25691.0,5.96037282]
[1693946768295,0.006,25692.0,25691.0,5.96013282]
[1693946768499,0.006,25692.0,25691.0,5.96097282]
[1693946768755,0.006,25692.0,25691.0,5.95965282]
[1693946769000,0.006,25692.0,25691.0,5.95953282]
[1693946769180,0.006,25692.0,25691.0,5.95941282]
[1693946769381,0.006,25692.0,25691.0,5.95929282]
[1693946769575,0.006,25692.0,25691.0,5.95917282]
[1693946769779,0.006,25692.0,25691.0,5.95881282]
[1693946769976,0.006,25692.0,25691.0,5.95869282]
[1693946770296,0.006,25692.0,25691.0,5.95317282]
[1693946770497,0.006,25692.0,25691.0,6.09270479]
[1693946770696,0.006,25692.0,25691.0,6.09222479]
[1693946770873,0.006,25692.0,25691.0,5.92416479]
[1693946771075,0.006,25692.0,25691.0,5.50114479]
[1693946771276,0.006,25692.0,25691.0,5.49736479]
[1693946771597,0.006,25692.0,25691.0,5.31114174]
[1693946771800,0.006,25692.0,25691.0,5.31186174]
[1693946771999,0.006,25692.0,25691.0,5.31600174]
[1693946772197,0.006,25692.0,25691.0,5.31606174]
[1693946772403,0.006,25692.0,25691.0,5.31612174]
[1693946772555,0.006,25692.0,25691.0,5.31630174]
[1693946772756,0.006,25692.0,25691.0,5.31648174]
[1693946772962,0.006,25692.0,25691.0,5.47628479]
[1693946773171,0.001,25692.0,25691.0,5.46956479]
[1693946773380,0.001,25692.0,25691.0,5.47052479]
[1693946773582,0.001,25692.0,25691.0,5.47094479]
[1693946773786,0.001,25692.0,25691.0,5.28472174]
[1693946773983,0.001,25692.0,25691.0,5.28484174]
[1693946774187,0.001,25692.0,25691.0,5.28532174]
[1693946774433,0.001,25692.0,25691.0,5.28556174]
[1693946774754,0.001,25692.0,25691.0,5.28706174]
[1693946774960,0.001,25692.0,25691.0,5.28286174]
[1693946775180,0.001,25692.0,25691.0,5.28208174]
[1693946775357,0.001,25692.0,25691.0,5.28124174]
[1693946775558,0.001,25692.0,25691.0,5.12106174]
[1693946775740,0.001,25692.0,25691.0,5.28130174]
[1693946775918,0.001,25692.0,25691.0,5.28154174]
[1693946776128,0.001,25692.0,25691.0,5.27956174]
[1693946776516,0.001,25692.0,25691.0,5.27656174]
[1693946776718,0.001,25692.0,25691.0,5.28376174]
[1693946776910,0.001,25692.0,25691.0,5.28814174]
[1693946777053,0.001,25692.0,25691.0,5.28886174]
[1693946777250,0.001,25692.0,25691.0,5.08861841]
[1693946777448,0.001,25692.0,25691.0,5.08867841]
[1693946777717,0.001,25692.0,25691.0,5.08885841]
[1693946778007,0.001,25692.0,25691.0,5.08921841]
[1693946778206,0.001,25692.0,25691.0,5.08939841]
[1693946778403,0.001,25692.0,25691.0,5.08963841]
[1693946778610,0.001,25692.0,25691.0,4.99039796]
[1693946778839,0.001,25692.0,25691.0,4.98661796]
[1693946779045,0.001,25692.0,25691.0,4.98481796]
[1693946779268,0.001,25692.0,25691.0,4.42455796]
[1693946779464,0.001,25692.0,25691.0,4.39207796]
[1693946779677,0.001,25692.0,25691.0,4.39201796]
[1693946779910,0.001,25692.0,25691.0,4.32205796]
[1693946780109,0.001,25692.0,25691.0,3.14294933]
[1693946781221,0.001,25692.0,25691.0,4.26459074]
[1693946781633,0.001,25692.0,25691.0,3.21182933]
[1693946781837,0.001,25692.0,25691.0,3.21170933]
[1693946781986,0.001,25692.0,25691.0,3.21188933]
[1693946782191,0.001,25692.0,25691.0,4.33365106]
[1693946782475,0.001,25692.0,25691.0,4.33299106]
[1693946783061,0.001,25692.0,25691.0,4.33407106]
[1693946783267,0.001,25692.0,25691.0,4.33413106]
[1693946783438,0.001,25692.0,25691.0,4.33425106]
[1693946783738,0.001,25692.0,25691.0,4.33455106]
[1693946783945,0.001,25692.0,25691.0,4.33467106]
[1693946784144,0.001,25692.0,25691.0,4.33479106]
[1693946784364,0.001,25692.0,25691.0,4.33527106]
[1693946784615,0.001,25692.0,25691.0,4.33521106]
[1693946784826,0.001,25692.0,25691.0,4.33461106]
[1693946785031,0.001,25692.0,25691.0,4.33551106]
[1693946785233,0.001,25692.0,25691.0,4.33581106]
[1693946785439,0.001,25692.0,25691.0,4.33527106]
[1693946785641,0.001,25692.0,25691.0,4.33557106]
[1693946785826,0.001,25692.0,25691.0,3.21386933]
[1693946786021,0.001,25692.0,25691.0,3.21398933]
[1693946786227,0.001,25692.0,25691.0,3.21410933]
[1693946786463,0.001,25692.0,25691.0,3.14294933]
[1693946789189,0.001,25692.0,25691.0,1.58858006]
[1693946789306,0.19566628,25692.0,25691.0,1.331862]
[1693946797393,0.021,25692.0,25691.0,1.331862]
[1693946798906,0.021,25692.0,25691.0,1.915724]
[1693946804399,0.021,25692.0,25691.0,3.03733684]
[1693946804626,0.001,25692.0,25691.0,3.03733684]
[1693946804976,0.021,25692.0,25691.0,3.03733684]
[1693946805878,0.001,25692.0,25691.0,3.03733684]
[1693946806092,0.021,25692.0,25691.0,3.03733684]
[1693946806720,0.001,25692.0,25691.0,3.03733684]
[1693946806921,0.021,25692.0,25691.0,3.03733684]
[1693946807345,0.021,25692.0,25691.0,4.22764411]
[1693946807346,0.001,25692.0,25691.0,4.22764411]
[1693946807553,0.001,25692.0,25691.0,4.39642411]
[1693946807758,0.001,25692.0,25691.0,5.62048556]
[1693946807972,0.0932691,25701.0,25691.0,5.62048556]
[1693946807973,0.23317275,25705.0,25700.0,0.04]
[1693946808186,0.0932691,25707.0,25703.0,0.04]
[1693946808412,0.16422365,25708.0,25706.0,0.1025]
[1693946808413,0.20551368,25708.0,25706.0,0.1025]
[1693946808617,0.20551368,25708.0,25707.0,0.73815611]
[1693946808819,0.20551368,25708.0,25707.0,1.32165411]
[1693946809028,0.02,25708.0,25707.0,2.68251871]
[1693946809235,0.02,25708.0,25707.0,2.5278606]
[1693946809651,0.021,25708.0,25707.0,3.2278606]
[1693946809861,0.021,25708.0,25707.0,3.2358606]
[1693946810892,0.021,25708.0,25707.0,3.8193586]
[1693946811098,0.022,25708.0,25707.0,3.8273586]
[1693946833606,0.022,25708.0,25707.0,3.83917035]
[1693946835895,0.022,25708.0,25707.0,4.40955562]
[1693946836095,0.022,25708.0,25707.0,4.41267562]
[1693946836543,0.002,25708.0,25707.0,4.41045562]
[1693946836753,0.002,25708.0,25707.0,4.42815562]
[1693946836953,0.002,25708.0,25707.0,4.42869562]
[1693946837155,0.002,25708.0,25707.0,4.42815562]
[1693946837378,0.002,25708.0,25707.0,4.42839562]
[1693946837567,0.002,25708.0,25707.0,4.42821562]
[1693946837765,0.002,25708.0,25707.0,4.42815562]
[1693946837967,0.002,25708.0,25707.0,4.42923562]
[1693946838169,0.002,25708.0,25707.0,4.42779562]
[1693946838371,0.002,25708.0,25707.0,4.42767562]
[1693946838568,0.002,25708.0,25707.0,4.42761562]
[1693946838796,0.002,25708.0,25707.0,4.42755562]
[1693946839387,0.002,25708.0,25707.0,4.42743562]
[1693946839586,0.002,25708.0,25707.0,4.42629562]
[1693946840009,0.002,25708.0,25707.0,4.42659562]
[1693946840255,0.002,25708.0,25707.0,4.42677562]
[1693946840506,0.002,25708.0,25707.0,4.42887562]
[1693946840681,0.002,25708.0,25707.0,4.42875562]
[1693946840894,0.002,25708.0,25707.0,4.42869562]
[1693946841311,0.002,25708.0,25707.0,4.42839562]
[1693946841515,0.002,25708.0,25707.0,4.42755562]
[1693946841950,0.002,25708.0,25707.0,4.42767562]
[1693946842151,0.002,25708.0,25707.0,4.42785562]
[1693946842365,0.002,25708.0,25707.0,4.42779562]
[1693946842561,0.002,25708.0,25707.0,4.42773562]
[1693946842767,0.002,25708.0,25707.0,4.42767562]
[1693946842977,0.002,25708.0,25707.0,4.42773562]
[1693946843181,0.002,25708.0,25707.0,4.42767562]
[1693946843393,0.002,25708.0,25707.0,4.42761562]
[1693946843594,0.002,25708.0,25707.0,4.60275562]
[1693946843797,0.002,25708.0,25707.0,4.62659562]
[1693946844033,0.001,25711.0,25709.0,0.04]
[1693946844240,0.001,25711.0,25710.0,4.53312498]
[1693946844444,0.001,25711.0,25710.0,5.18119162]
[1693946844646,0.001,25711.0,25710.0,5.18095162]
[1693946844853,0.001,25711.0,25710.0,5.19271162]
[1693946845068,0.001,25711.0,25710.0,5.04742506]
[1693946845270,0.001,25711.0,25710.0,5.04736506]
[1693946845271,0.002,25711.0,25710.0,5.04736506]
[1693946845472,0.001,25711.0,25710.0,5.04658506]
[1693946845653,0.001,25711.0,25710.0,5.74676506]
[1693946845832,0.002,25711.0,25710.0,5.77218506]
[1693946846033,0.002,25711.0,25710.0,5.77404506]
[1693946846239,0.001,25711.0,25710.0,5.74964506]
[1693946846643,0.002,25711.0,25710.0,5.90622506]
[1693946846801,0.002,25711.0,25710.0,5.77446506]
[1693946847002,0.002,25711.0,25710.0,5.88134506]
[1693946847200,0.001,25711.0,25710.0,5.88386506]
[1693946847403,0.002,25711.0,25710.0,5.90802506]
[1693946847650,0.002,25711.0,25710.0,5.90790506]
[1693946847822,0.002,25711.0,25710.0,5.90754506]
[1693946848164,0.002,25711.0,25710.0,5.92830506]
[1693946848500,0.003,25711.0,25710.0,5.95162506]
[1693946848648,0.003,25711.0,25710.0,5.95450506]
[1693946848826,0.003,25711.0,25710.0,5.95462506]
[1693946849053,0.003,25711.0,25710.0,5.96110506]
[1693946849305,0.003,25711.0,25710.0,5.96158506]
[1693946849481,0.003,25711.0,25710.0,5.96038506]
[1693946849637,0.003,25711.0,25710.0,5.96074506]
[1693946849838,0.003,25711.0,25710.0,5.95282506]
[1693946850049,0.003,25711.0,25710.0,5.93638506]
[1693946850248,0.003,25711.0,25710.0,5.93662506]
[1693946850724,0.003,25711.0,25710.0,5.93590506]
[1693946850921,0.003,25711.0,25710.0,5.93554506]
[1693946851145,0.003,25711.0,25710.0,5.93578506]
[1693946851494,0.003,25711.0,25710.0,5.93554506]
[1693946851704,0.003,25711.0,25710.0,5.93458506]
[1693946851912,0.003,25711.0,25710.0,5.93446506]
[1693946852266,0.003,25711.0,25710.0,5.93890506]
[1693946852481,0.003,25711.0,25710.0,5.93878506]